[Event "Early-Titled-Tuesday-Blitz-February-06-2024"]
[Site "Chess.com"]
[Date "2024.02.06"]
[Round "7"]
[White "Baby_Legs"]
[Black "LileKoridze"]
[Result "0-1"]
[WhiteElo "2629"]
[BlackElo "2410"]
[TimeControl "180+1"]
[EndTime "9:18:25 PST"]
[Termination "LileKoridze won by resignation"]

1. c4 {[%clk 0:03:00.9]} 1... e5 {[%clk 0:02:56.5]} 2. Nc3 {[%clk 0:03:01.1]}
2... Nf6 {[%clk 0:02:56]} 3. Nf3 {[%clk 0:03:01]} 3... Nc6 {[%clk 0:02:55.7]} 4.
a3 {[%clk 0:03:01.2]} 4... a5 {[%clk 0:02:51.1]} 5. e3 {[%clk 0:02:53.8]} 5...
d5 {[%clk 0:02:47.1]} 6. cxd5 {[%clk 0:02:53.7]} 6... Nxd5 {[%clk 0:02:47.2]} 7.
Qc2 {[%clk 0:02:53.8]} 7... Be6 {[%clk 0:02:45]} 8. Bb5 {[%clk 0:02:52.3]} 8...
Bd6 {[%clk 0:02:44.2]} 9. Ne4 {[%clk 0:02:51.3]} 9... Ne7 {[%clk 0:02:41.2]} 10.
b3 {[%clk 0:02:38.8]} 10... O-O {[%clk 0:02:36]} 11. Bb2 {[%clk 0:02:38.8]}
11... f6 {[%clk 0:02:30.7]} 12. O-O {[%clk 0:02:32.3]} 12... Bf5 {[%clk
0:02:18.9]} 13. Rfd1 {[%clk 0:02:25.1]} 13... Kh8 {[%clk 0:02:18]} 14. h3 {[%clk
0:02:23]} 14... Qe8 {[%clk 0:02:17]} 15. d3 {[%clk 0:02:02.6]} 15... Qh5 {[%clk
0:02:10.2]} 16. Ng3 {[%clk 0:02:00.7]} 16... Qg6 {[%clk 0:02:08.5]} 17. Nh4
{[%clk 0:01:57.9]} 17... Qg5 {[%clk 0:02:08.5]} 18. Nhxf5 {[%clk 0:01:52]} 18...
Nxf5 {[%clk 0:02:08.7]} 19. Nxf5 {[%clk 0:01:48.4]} 19... Qxf5 {[%clk
0:02:08.6]} 20. Bxc6 {[%clk 0:01:49]} 20... bxc6 {[%clk 0:02:08.7]} 21. Qxc6
{[%clk 0:01:49.9]} 21... Rab8 {[%clk 0:02:06.9]} 22. Qc4 {[%clk 0:01:49.7]}
22... Rb6 {[%clk 0:02:03.6]} 23. Bc3 {[%clk 0:01:44.8]} 23... Ra8 {[%clk
0:01:37.3]} 24. e4 {[%clk 0:01:32.7]} 24... Qd7 {[%clk 0:01:32.7]} 25. Bd2
{[%clk 0:01:27]} 25... Rab8 {[%clk 0:01:32.3]} 26. Rdb1 {[%clk 0:01:22.4]} 26...
a4 {[%clk 0:01:21.4]} 27. b4 {[%clk 0:01:19.5]} 27... Bf8 {[%clk 0:01:21.3]} 28.
Rc1 {[%clk 0:01:16]} 28... Rc8 {[%clk 0:01:10.9]} 29. Be3 {[%clk 0:01:15.6]}
29... Rd6 {[%clk 0:01:10.9]} 30. Rc3 {[%clk 0:01:15.1]} 30... c6 {[%clk
0:01:06.5]} 31. Rac1 {[%clk 0:01:14.6]} 31... Rd8 {[%clk 0:01:01]} 32. Rd1
{[%clk 0:01:13.1]} 32... Qb7 {[%clk 0:00:55.5]} 33. Kf1 {[%clk 0:01:12.6]} 33...
Rc8 {[%clk 0:00:53.4]} 34. Ke2 {[%clk 0:01:12.1]} 34... g6 {[%clk 0:00:50.2]}
35. Bc5 {[%clk 0:01:08.2]} 35... Rd7 {[%clk 0:00:50.6]} 36. Qe6 {[%clk
0:01:07.6]} 36... Bg7 {[%clk 0:00:49.6]} 37. Rdc1 {[%clk 0:01:05.3]} 37... Rcd8
{[%clk 0:00:45.4]} 38. Be3 {[%clk 0:01:03.6]} 38... Rd6 {[%clk 0:00:39.9]} 39.
Qc4 {[%clk 0:01:01.7]} 39... Rc8 {[%clk 0:00:38.8]} 40. h4 {[%clk 0:01:01.3]}
40... f5 {[%clk 0:00:37.9]} 41. f3 {[%clk 0:01:00.7]} 41... f4 {[%clk 0:00:21]}
42. Bf2 {[%clk 0:00:59.1]} 42... Rcd8 {[%clk 0:00:17.1]} 43. R1c2 {[%clk
0:00:56.2]} 43... Qd7 {[%clk 0:00:16.7]} 44. Qa6 {[%clk 0:00:50.9]} 44... c5
{[%clk 0:00:17.2]} 45. Qc4 {[%clk 0:00:48.2]} 45... cxb4 {[%clk 0:00:16.6]} 46.
Qxb4 {[%clk 0:00:48.7]} 46... Bf8 {[%clk 0:00:14.6]} 47. Rc7 {[%clk 0:00:35.1]}
47... Qe8 {[%clk 0:00:12.4]} 48. Qc4 {[%clk 0:00:27]} 48... Rxd3 {[%clk
0:00:12]} 49. Qxd3 {[%clk 0:00:26.3]} 49... Rxd3 {[%clk 0:00:12.9]} 50. Kxd3
{[%clk 0:00:27.1]} 50... Qb5+ {[%clk 0:00:13.5]} 51. Kd2 {[%clk 0:00:27.1]}
51... Bxa3 {[%clk 0:00:10.4]} 52. Bc5 {[%clk 0:00:14.8]} 52... Qa5+ {[%clk
0:00:09.2]} 53. Ke2 {[%clk 0:00:13.9]} 53... Qxc7 {[%clk 0:00:09.3]} 54. Kd3
{[%clk 0:00:13.7]} 54... Bxc5 {[%clk 0:00:09.3]} 0-1

[Event "Early-Titled-Tuesday-Blitz-February-06-2024"]
[Site "Chess.com"]
[Date "2024.02.06"]
[Round "7"]
[White "CADMartin"]
[Black "Iskusnyh"]
[Result "1-0"]
[WhiteElo "2482"]
[BlackElo "2643"]
[TimeControl "180+1"]
[EndTime "9:18:28 PST"]
[Termination "CADMartin won on time"]

1. e4 {[%clk 0:03:00.9]} 1... e6 {[%clk 0:02:56.7]} 2. d4 {[%clk 0:02:42.2]}
2... d5 {[%clk 0:02:53.2]} 3. exd5 {[%clk 0:02:41.8]} 3... exd5 {[%clk
0:02:52.1]} 4. Bd3 {[%clk 0:02:42.4]} 4... c5 {[%clk 0:02:47.4]} 5. dxc5 {[%clk
0:02:40.4]} 5... Bxc5 {[%clk 0:02:44.7]} 6. Ne2 {[%clk 0:02:39.2]} 6... Nf6
{[%clk 0:02:42.2]} 7. O-O {[%clk 0:02:38.9]} 7... O-O {[%clk 0:02:41.4]} 8. h3
{[%clk 0:02:28.4]} 8... Nc6 {[%clk 0:02:39.5]} 9. Bg5 {[%clk 0:02:26.8]} 9... h6
{[%clk 0:02:38.5]} 10. Bh4 {[%clk 0:02:26]} 10... g5 {[%clk 0:02:34]} 11. Bg3
{[%clk 0:02:25.9]} 11... Ne4 {[%clk 0:02:33.1]} 12. Nbc3 {[%clk 0:02:22.8]}
12... f5 {[%clk 0:02:32.1]} 13. Kh1 {[%clk 0:01:34.7]} 13... Be6 {[%clk
0:02:24.5]} 14. f3 {[%clk 0:01:22.1]} 14... Nxg3+ {[%clk 0:02:17]} 15. Nxg3
{[%clk 0:01:23]} 15... Qd6 {[%clk 0:02:11.5]} 16. Nge2 {[%clk 0:01:17.8]} 16...
Rad8 {[%clk 0:02:05.7]} 17. a3 {[%clk 0:01:16]} 17... a6 {[%clk 0:02:04.1]} 18.
f4 {[%clk 0:01:11.6]} 18... d4 {[%clk 0:01:52.4]} 19. Na4 {[%clk 0:01:07.6]}
19... Ba7 {[%clk 0:01:51.1]} 20. b4 {[%clk 0:01:06.6]} 20... Bd5 {[%clk
0:01:44.8]} 21. Qd2 {[%clk 0:00:58.2]} 21... Qg6 {[%clk 0:01:31.2]} 22. Ng3
{[%clk 0:00:57.1]} 22... gxf4 {[%clk 0:01:22.7]} 23. Nxf5 {[%clk 0:00:55.1]}
23... Rxf5 {[%clk 0:01:07.8]} 24. Bxf5 {[%clk 0:00:48.1]} 24... Qxf5 {[%clk
0:01:05.1]} 25. Rxf4 {[%clk 0:00:48.8]} 25... Qxh3+ {[%clk 0:01:01.8]} 26. Kg1
{[%clk 0:00:47.1]} 26... d3+ {[%clk 0:01:01.2]} 27. Nc5 {[%clk 0:00:45.4]} 27...
Qg3 {[%clk 0:00:47]} 28. Raf1 {[%clk 0:00:41.8]} 28... Ne5 {[%clk 0:00:28.3]}
29. cxd3 {[%clk 0:00:28.8]} 29... Ng4 {[%clk 0:00:24.8]} 30. Rxg4+ {[%clk
0:00:24.5]} 30... Qxg4 {[%clk 0:00:23.4]} 31. Rf4 {[%clk 0:00:17.5]} 31... Qg5
{[%clk 0:00:21.1]} 32. Qf2 {[%clk 0:00:16.6]} 32... Bxc5 {[%clk 0:00:19.3]} 33.
bxc5 {[%clk 0:00:16.5]} 33... Re8 {[%clk 0:00:18.4]} 34. Rf5 {[%clk 0:00:15.2]}
34... Qc1+ {[%clk 0:00:14.9]} 35. Kh2 {[%clk 0:00:15.7]} 35... Be6 {[%clk
0:00:12.5]} 36. Qg3+ {[%clk 0:00:15.8]} 36... Kh7 {[%clk 0:00:10.4]} 37. Qc7+
{[%clk 0:00:15.2]} 37... Kh8 {[%clk 0:00:07.8]} 38. Qe5+ {[%clk 0:00:13.4]}
38... Kg8 {[%clk 0:00:05.7]} 39. Rf6 {[%clk 0:00:14]} 39... Qg5 {[%clk
0:00:03.2]} 40. Qd4 {[%clk 0:00:08.3]} 40... Qh5+ {[%clk 0:00:02]} 41. Kg1
{[%clk 0:00:08.4]} 41... Qd1+ {[%clk 0:00:01.1]} 42. Rf1 {[%clk 0:00:08]} 42...
Qg4 {[%clk 0:00:01.1]} 43. Rf4 {[%clk 0:00:07.2]} 1-0

[Event "Early-Titled-Tuesday-Blitz-February-06-2024"]
[Site "Chess.com"]
[Date "2024.02.06"]
[Round "7"]
[White "FlemingA"]
[Black "Willhaven3"]
[Result "0-1"]
[WhiteElo "2424"]
[BlackElo "2615"]
[TimeControl "180+1"]
[EndTime "9:18:30 PST"]
[Termination "Willhaven3 won by resignation"]

1. g3 {[%clk 0:02:54.9]} 1... d5 {[%clk 0:02:59.8]} 2. Bg2 {[%clk 0:02:40.2]}
2... Nf6 {[%clk 0:02:59.4]} 3. b3 {[%clk 0:02:40.6]} 3... Bf5 {[%clk 0:02:58.5]}
4. Bb2 {[%clk 0:02:40.9]} 4... e6 {[%clk 0:02:58.5]} 5. Nf3 {[%clk 0:02:41]}
5... h6 {[%clk 0:02:58.3]} 6. O-O {[%clk 0:02:41.5]} 6... Bd6 {[%clk 0:02:57.1]}
7. d3 {[%clk 0:02:40.8]} 7... O-O {[%clk 0:02:56.7]} 8. Nbd2 {[%clk 0:02:41.3]}
8... Bh7 {[%clk 0:02:56.3]} 9. Re1 {[%clk 0:02:40]} 9... Nbd7 {[%clk 0:02:54.1]}
10. e4 {[%clk 0:02:40.5]} 10... dxe4 {[%clk 0:02:51.8]} 11. dxe4 {[%clk
0:02:38.1]} 11... Bc5 {[%clk 0:02:44]} 12. Qe2 {[%clk 0:02:33]} 12... Ng4 {[%clk
0:02:40.8]} 13. Nd4 {[%clk 0:02:27.1]} 13... Nxf2 {[%clk 0:02:33.1]} 14. Qxf2
{[%clk 0:02:10.6]} 14... e5 {[%clk 0:02:29.5]} 15. N2f3 {[%clk 0:01:56.8]} 15...
exd4 {[%clk 0:02:23.7]} 16. Bxd4 {[%clk 0:01:56.3]} 16... Qe7 {[%clk 0:02:18.7]}
17. Rad1 {[%clk 0:01:47.2]} 17... Rfe8 {[%clk 0:01:58.8]} 18. Nh4 {[%clk
0:01:46.5]} 18... Bxd4 {[%clk 0:01:56.7]} 19. Qxd4 {[%clk 0:01:25.8]} 19... Ne5
{[%clk 0:01:55.6]} 20. Qf2 {[%clk 0:01:05.5]} 20... Ng4 {[%clk 0:01:43.4]} 21.
Qd4 {[%clk 0:00:37.4]} 21... Red8 {[%clk 0:01:35]} 22. Qc3 {[%clk 0:00:31.7]}
22... Qe5 {[%clk 0:01:18.1]} 23. Qxe5 {[%clk 0:00:31.2]} 23... Nxe5 {[%clk
0:01:17.9]} 24. Nf5 {[%clk 0:00:26.6]} 24... Kf8 {[%clk 0:01:13.4]} 25. Ne3
{[%clk 0:00:23.6]} 25... c6 {[%clk 0:01:10.9]} 26. Kf2 {[%clk 0:00:23.5]} 26...
Bg6 {[%clk 0:01:07.2]} 27. h3 {[%clk 0:00:23.8]} 27... Rxd1 {[%clk 0:01:03.2]}
28. Rxd1 {[%clk 0:00:24.2]} 28... Ke7 {[%clk 0:01:03.6]} 29. g4 {[%clk
0:00:20.6]} 29... a5 {[%clk 0:01:00.4]} 30. a4 {[%clk 0:00:18.8]} 30... Rd8
{[%clk 0:00:58.2]} 31. Rxd8 {[%clk 0:00:17.2]} 31... Kxd8 {[%clk 0:00:59.1]} 32.
Nd1 {[%clk 0:00:13.3]} 32... h5 {[%clk 0:00:52.1]} 33. Bf3 {[%clk 0:00:12.3]}
33... hxg4 {[%clk 0:00:51.6]} 34. hxg4 {[%clk 0:00:13.2]} 34... f6 {[%clk
0:00:49.2]} 35. Ke3 {[%clk 0:00:13.4]} 35... Kc7 {[%clk 0:00:46.8]} 36. Nf2
{[%clk 0:00:12.5]} 36... b5 {[%clk 0:00:44.4]} 37. Be2 {[%clk 0:00:05.7]} 37...
Kb6 {[%clk 0:00:43.4]} 38. Kf4 {[%clk 0:00:03.1]} 38... Kc5 {[%clk 0:00:40.5]}
39. g5 {[%clk 0:00:03.6]} 39... bxa4 {[%clk 0:00:37.1]} 40. bxa4 {[%clk
0:00:03.6]} 40... Kb4 {[%clk 0:00:36.3]} 41. gxf6 {[%clk 0:00:03.7]} 41... gxf6
{[%clk 0:00:36.1]} 42. Nh3 {[%clk 0:00:02.2]} 42... Kxa4 {[%clk 0:00:34.9]} 43.
Ke3 {[%clk 0:00:02.9]} 43... Kb4 {[%clk 0:00:33.6]} 44. Nf4 {[%clk 0:00:03.8]}
44... Bf7 {[%clk 0:00:33.7]} 45. Kd4 {[%clk 0:00:03.2]} 45... c5+ {[%clk
0:00:33]} 46. Ke3 {[%clk 0:00:02.7]} 46... Kc3 {[%clk 0:00:31.7]} 47. Bd3 {[%clk
0:00:02.1]} 47... c4 {[%clk 0:00:31.1]} 48. Ne2+ {[%clk 0:00:02.8]} 48... Kb2
{[%clk 0:00:30.3]} 49. Bxc4 {[%clk 0:00:02.7]} 49... Nxc4+ {[%clk 0:00:31.2]}
50. Kd4 {[%clk 0:00:03.5]} 50... a4 {[%clk 0:00:31.2]} 51. Nc3 {[%clk
0:00:03.6]} 51... a3 {[%clk 0:00:30.2]} 52. Nd1+ {[%clk 0:00:02.3]} 52... Kxc2
{[%clk 0:00:30]} 53. Nc3 {[%clk 0:00:03.2]} 53... Kb2 {[%clk 0:00:29.1]} 54.
Na4+ {[%clk 0:00:03.8]} 54... Ka1 {[%clk 0:00:28.5]} 55. Nc3 {[%clk 0:00:04.7]}
55... a2 {[%clk 0:00:28]} 56. Nxa2 {[%clk 0:00:05.1]} 56... Kxa2 {[%clk
0:00:28.9]} 57. Kd3 {[%clk 0:00:04.2]} 57... Kb3 {[%clk 0:00:28.8]} 58. Kd4
{[%clk 0:00:04.6]} 58... Kb4 {[%clk 0:00:29.1]} 59. Kd3 {[%clk 0:00:05.5]} 59...
Kc5 {[%clk 0:00:29.5]} 60. Kc3 {[%clk 0:00:05.7]} 60... Ne5 {[%clk 0:00:29.6]}
61. Kd2 {[%clk 0:00:05]} 61... Kd4 {[%clk 0:00:30.1]} 0-1

[Event "Early-Titled-Tuesday-Blitz-February-06-2024"]
[Site "Chess.com"]
[Date "2024.02.06"]
[Round "7"]
[White "falzehope0"]
[Black "DonJuanEGenaro"]
[Result "0-1"]
[WhiteElo "2351"]
[BlackElo "2059"]
[TimeControl "180+1"]
[EndTime "9:18:30 PST"]
[Termination "DonJuanEGenaro won by resignation"]

1. d4 {[%clk 0:03:00.9]} 1... Nf6 {[%clk 0:02:57.9]} 2. e3 {[%clk 0:03:00.7]}
2... d6 {[%clk 0:02:56.7]} 3. Bd3 {[%clk 0:03:00.7]} 3... Nbd7 {[%clk
0:02:56.3]} 4. f4 {[%clk 0:03:00.9]} 4... c6 {[%clk 0:02:51.8]} 5. Nf3 {[%clk
0:03:00.3]} 5... g6 {[%clk 0:02:50.6]} 6. O-O {[%clk 0:02:59.4]} 6... Bg7 {[%clk
0:02:50.5]} 7. Nbd2 {[%clk 0:02:56.8]} 7... Qc7 {[%clk 0:02:44.6]} 8. Qe1 {[%clk
0:02:55.9]} 8... e5 {[%clk 0:02:44.2]} 9. c3 {[%clk 0:02:49.1]} 9... O-O {[%clk
0:02:37.7]} 10. f5 {[%clk 0:02:48.4]} 10... Re8 {[%clk 0:02:35.9]} 11. fxg6
{[%clk 0:02:46.9]} 11... hxg6 {[%clk 0:02:30.7]} 12. Ng5 {[%clk 0:02:46.4]}
12... d5 {[%clk 0:02:15]} 13. Qh4 {[%clk 0:02:38.6]} 13... e4 {[%clk 0:02:11.9]}
14. Be2 {[%clk 0:02:38]} 14... Nf8 {[%clk 0:02:07.7]} 15. c4 {[%clk 0:02:36.3]}
15... N8h7 {[%clk 0:02:04.2]} 16. cxd5 {[%clk 0:02:24.6]} 16... Nxg5 {[%clk
0:01:54.3]} 17. Qxg5 {[%clk 0:02:23.6]} 17... Nxd5 {[%clk 0:01:54.1]} 18. Nb3
{[%clk 0:02:09.8]} 18... b6 {[%clk 0:01:45.2]} 19. Bd2 {[%clk 0:02:09.1]} 19...
Qe7 {[%clk 0:01:36.8]} 20. Qg3 {[%clk 0:02:04.8]} 20... Be6 {[%clk 0:01:35.5]}
21. Rac1 {[%clk 0:02:00.4]} 21... Rec8 {[%clk 0:01:34.2]} 22. Bg4 {[%clk
0:01:54.6]} 22... Bxg4 {[%clk 0:01:21.1]} 23. Qxg4 {[%clk 0:01:53.9]} 23... a5
{[%clk 0:01:16.7]} 24. a3 {[%clk 0:01:51]} 24... a4 {[%clk 0:01:16.1]} 25. Na1
{[%clk 0:01:50.3]} 25... Nf6 {[%clk 0:01:01.9]} 26. Qh4 {[%clk 0:01:45.9]} 26...
Nd5 {[%clk 0:00:54.6]} 27. Qg3 {[%clk 0:01:40.4]} 27... Qe6 {[%clk 0:00:52.9]}
28. Nc2 {[%clk 0:01:36]} 28... c5 {[%clk 0:00:51.5]} 29. Qf2 {[%clk 0:01:26.9]}
29... cxd4 {[%clk 0:00:47.3]} 30. Nxd4 {[%clk 0:01:26.6]} 30... Bxd4 {[%clk
0:00:44.5]} 31. exd4 {[%clk 0:01:22.9]} 31... e3 {[%clk 0:00:41.5]} 32. Bxe3
{[%clk 0:01:22.2]} 32... Nxe3 {[%clk 0:00:39.2]} 33. Rce1 {[%clk 0:01:16.6]}
33... Re8 {[%clk 0:00:37.1]} 34. Kh1 {[%clk 0:01:12.6]} 34... Rad8 {[%clk
0:00:33.8]} 35. Qf4 {[%clk 0:01:08.3]} 35... Nd5 {[%clk 0:00:26.8]} 36. Qg3
{[%clk 0:00:58.6]} 36... Qd7 {[%clk 0:00:24.9]} 37. Rd1 {[%clk 0:00:54.6]} 37...
Ne3 {[%clk 0:00:23.8]} 38. Rg1 {[%clk 0:00:43.5]} 38... Nxd1 {[%clk 0:00:23.3]}
39. Rxd1 {[%clk 0:00:44.4]} 39... Re4 {[%clk 0:00:22.3]} 40. d5 {[%clk
0:00:42.8]} 40... Qg4 {[%clk 0:00:22.2]} 41. Qd3 {[%clk 0:00:36.6]} 41... Qf4
{[%clk 0:00:20.6]} 42. Rf1 {[%clk 0:00:26.4]} 42... Qe5 {[%clk 0:00:19.6]} 43.
Qf3 {[%clk 0:00:19.1]} 43... f5 {[%clk 0:00:18.2]} 44. d6 {[%clk 0:00:16.9]}
44... Rxd6 {[%clk 0:00:17.5]} 45. Qf2 {[%clk 0:00:16.8]} 45... Re6 {[%clk
0:00:17.2]} 46. h3 {[%clk 0:00:16.7]} 46... Re1 {[%clk 0:00:16.8]} 47. Qf3
{[%clk 0:00:15.8]} 47... Rxf1+ {[%clk 0:00:15.9]} 48. Qxf1 {[%clk 0:00:16.7]}
48... Qe1 {[%clk 0:00:15.2]} 49. Kg1 {[%clk 0:00:17.6]} 49... Qxf1+ {[%clk
0:00:14.3]} 50. Kxf1 {[%clk 0:00:18.5]} 50... Rc6 {[%clk 0:00:13.7]} 51. Ke1
{[%clk 0:00:18.6]} 51... Rc2 {[%clk 0:00:14.3]} 52. Kf1 {[%clk 0:00:19.4]} 52...
Rxb2 {[%clk 0:00:14.7]} 53. Kg1 {[%clk 0:00:20]} 53... Ra2 {[%clk 0:00:15.3]}
54. Kh1 {[%clk 0:00:20.1]} 54... Rxa3 {[%clk 0:00:16]} 55. Kg1 {[%clk
0:00:19.9]} 55... Rd3 {[%clk 0:00:15.9]} 56. Kf2 {[%clk 0:00:19.4]} 56... a3
{[%clk 0:00:16.6]} 57. Ke2 {[%clk 0:00:19.6]} 57... Rb3 {[%clk 0:00:16.4]} 58.
Kf2 {[%clk 0:00:19.8]} 58... a2 {[%clk 0:00:16.8]} 59. Kg1 {[%clk 0:00:19.8]}
59... a1=Q+ {[%clk 0:00:17.5]} 60. Kh2 {[%clk 0:00:20.7]} 60... Qd4 {[%clk
0:00:15.3]} 61. Kh1 {[%clk 0:00:19.4]} 61... Rb2 {[%clk 0:00:15.9]} 62. Kh2
{[%clk 0:00:19.6]} 62... Qf2 {[%clk 0:00:15.9]} 0-1

[Event "Early-Titled-Tuesday-Blitz-February-06-2024"]
[Site "Chess.com"]
[Date "2024.02.06"]
[Round "7"]
[White "dropstoneDP"]
[Black "scarabee43"]
[Result "1-0"]
[WhiteElo "3024"]
[BlackElo "2868"]
[TimeControl "180+1"]
[EndTime "9:18:31 PST"]
[Termination "dropstoneDP won by resignation"]

1. e4 {[%clk 0:03:00.9]} 1... c5 {[%clk 0:02:59.8]} 2. Nf3 {[%clk 0:02:58.6]}
2... e6 {[%clk 0:03:00.2]} 3. d4 {[%clk 0:02:58.6]} 3... cxd4 {[%clk 0:03:00.3]}
4. Nxd4 {[%clk 0:02:59.5]} 4... Nc6 {[%clk 0:03:00.8]} 5. Nc3 {[%clk 0:02:59.2]}
5... Qc7 {[%clk 0:03:01]} 6. Be2 {[%clk 0:02:55.6]} 6... a6 {[%clk 0:03:00]} 7.
Nxc6 {[%clk 0:02:55.8]} 7... bxc6 {[%clk 0:03:00.1]} 8. Qd4 {[%clk 0:02:56.2]}
8... d5 {[%clk 0:02:35.3]} 9. exd5 {[%clk 0:02:54.1]} 9... cxd5 {[%clk
0:02:35.6]} 10. Bf4 {[%clk 0:02:54.5]} 10... Qc5 {[%clk 0:02:34.8]} 11. Qxc5
{[%clk 0:02:53.7]} 11... Bxc5 {[%clk 0:02:34.4]} 12. Na4 {[%clk 0:02:54.6]}
12... Ba7 {[%clk 0:02:30.2]} 13. c4 {[%clk 0:02:52.5]} 13... Nf6 {[%clk
0:02:29]} 14. Bf3 {[%clk 0:02:47.1]} 14... Bb7 {[%clk 0:02:18.2]} 15. Nc3 {[%clk
0:02:41.5]} 15... O-O {[%clk 0:02:11.4]} 16. O-O {[%clk 0:02:37.3]} 16... Rac8
{[%clk 0:02:06.2]} 17. cxd5 {[%clk 0:02:34.7]} 17... Nxd5 {[%clk 0:02:05.1]} 18.
Nxd5 {[%clk 0:02:34.8]} 18... Bxd5 {[%clk 0:02:05]} 19. Bxd5 {[%clk 0:02:35.2]}
19... exd5 {[%clk 0:02:05.7]} 20. Rac1 {[%clk 0:02:31.5]} 20... Rfe8 {[%clk
0:01:52.3]} 21. Rxc8 {[%clk 0:02:16]} 21... Rxc8 {[%clk 0:01:52.6]} 22. Rc1
{[%clk 0:02:15.9]} 22... Re8 {[%clk 0:01:42.2]} 23. Kf1 {[%clk 0:02:13.8]} 23...
h6 {[%clk 0:01:40.4]} 24. Rc6 {[%clk 0:02:10.3]} 24... Re4 {[%clk 0:01:35.4]}
25. g3 {[%clk 0:02:08.9]} 25... Ra4 {[%clk 0:01:32.3]} 26. a3 {[%clk 0:02:07.5]}
26... Bd4 {[%clk 0:01:32.5]} 27. Rc8+ {[%clk 0:01:40.8]} 27... Kh7 {[%clk
0:01:31.9]} 28. Rb8 {[%clk 0:01:41.3]} 28... Rc4 {[%clk 0:01:28.3]} 29. Ke2
{[%clk 0:01:38.9]} 29... g5 {[%clk 0:01:09.6]} 30. Bd6 {[%clk 0:01:10.6]} 30...
Rc6 {[%clk 0:01:09.3]} 31. Kd3 {[%clk 0:01:02.8]} 31... Bxf2 {[%clk 0:01:08.7]}
32. Be5 {[%clk 0:01:02.1]} 32... f6 {[%clk 0:00:59.7]} 33. Bc3 {[%clk
0:01:01.7]} 33... h5 {[%clk 0:00:47.6]} 34. Rd8 {[%clk 0:00:58.7]} 34... Bg1
{[%clk 0:00:43.7]} 35. h3 {[%clk 0:00:57.6]} 35... g4 {[%clk 0:00:34.5]} 36.
Rxd5 {[%clk 0:00:56.7]} 36... Kg6 {[%clk 0:00:33.7]} 37. hxg4 {[%clk 0:00:55.9]}
37... hxg4 {[%clk 0:00:33.5]} 38. Ke2 {[%clk 0:00:49.1]} 38... Re6+ {[%clk
0:00:32.6]} 39. Kf1 {[%clk 0:00:49.2]} 39... Bb6 {[%clk 0:00:32.1]} 40. a4
{[%clk 0:00:47.6]} 40... Re3 {[%clk 0:00:31.1]} 41. Rd6 {[%clk 0:00:45.4]} 41...
Rf3+ {[%clk 0:00:30.9]} 42. Ke2 {[%clk 0:00:42.8]} 42... Bc7 {[%clk 0:00:18.1]}
43. Rxa6 {[%clk 0:00:42.8]} 43... Bxg3 {[%clk 0:00:18.7]} 44. a5 {[%clk
0:00:43.3]} 44... Rf2+ {[%clk 0:00:17.6]} 45. Kd3 {[%clk 0:00:42.7]} 45... Bh4
{[%clk 0:00:13.8]} 46. Ra8 {[%clk 0:00:41.2]} 46... g3 {[%clk 0:00:13.2]} 47.
Bd4 {[%clk 0:00:36]} 47... Rf1 {[%clk 0:00:08.4]} 48. a6 {[%clk 0:00:34.6]}
48... Rd1+ {[%clk 0:00:08]} 49. Kc4 {[%clk 0:00:34]} 49... Rc1+ {[%clk
0:00:05.1]} 50. Kb3 {[%clk 0:00:33.8]} 50... Kf5 {[%clk 0:00:03.4]} 51. a7
{[%clk 0:00:33.7]} 51... Ra1 {[%clk 0:00:01.7]} 52. Rg8 {[%clk 0:00:34.1]} 52...
Bg5 {[%clk 0:00:01.6]} 53. a8=Q {[%clk 0:00:33.9]} 53... Rxa8 {[%clk 0:00:01.5]}
54. Rxa8 {[%clk 0:00:34.8]} 54... Ke4 {[%clk 0:00:02]} 55. Kc4 {[%clk
0:00:35.1]} 55... g2 {[%clk 0:00:01.9]} 56. Re8+ {[%clk 0:00:34.2]} 56... Kf3
{[%clk 0:00:02]} 57. b4 {[%clk 0:00:33]} 57... f5 {[%clk 0:00:01.5]} 58. b5
{[%clk 0:00:33.4]} 58... Bh4 {[%clk 0:00:02.1]} 59. b6 {[%clk 0:00:32.2]} 59...
f4 {[%clk 0:00:01.6]} 60. b7 {[%clk 0:00:32.2]} 60... Bf2 {[%clk 0:00:02.4]} 61.
Bxf2 {[%clk 0:00:32]} 61... Kxf2 {[%clk 0:00:02.7]} 62. Rg8 {[%clk 0:00:32.6]}
62... f3 {[%clk 0:00:03.1]} 63. b8=Q {[%clk 0:00:31.3]} 63... g1=Q {[%clk
0:00:03.5]} 64. Qb6+ {[%clk 0:00:30.1]} 1-0